bitfinex/quotes_SOLUSD_20230404
["timestamp","ask_amount","ask_price","bid_price","bid_amount"]
[1680618557912,20.0,20.973,20.954,17.0]
[1680618558627,20.0,20.973,20.955,20.0]
[1680618558932,20.0,20.973,20.956,17.0]
[1680618560319,7.18696922,20.974,20.956,17.0]
[1680618560526,20.0,20.973,20.956,17.0]
[1680618565840,20.0,20.973,20.953,40.0]
[1680618566137,27.1,20.97,20.953,40.0]
[1680618566738,113.6529,20.969,20.953,40.0]
[1680618567325,113.6529,20.969,20.954,17.0]
[1680618568842,113.6529,20.969,20.953,20.0]
[1680618569044,113.6529,20.969,20.951,20.0]
[1680618569241,113.6529,20.969,20.95,20.0]
[1680618569436,17.0,20.965,20.951,17.0]
[1680618569627,17.0,20.965,20.952,20.0]
[1680618569830,20.0,20.964,20.946,20.0]
[1680618570027,20.0,20.964,20.945,91.35203073]
[1680618570028,20.0,20.964,20.944,132.27533694]
[1680618570232,17.0,20.963,20.944,132.27533694]
[1680618570543,17.0,20.963,20.945,20.0]
[1680618571133,17.0,20.963,20.946,17.0]
[1680618571543,17.0,20.963,20.947,20.0]
[1680618571744,17.0,20.963,20.948,17.0]
[1680618571951,17.0,20.963,20.945,27.18696922]
[1680618572145,27.1,20.96,20.946,17.0]
[1680618573349,27.1,20.96,20.945,20.0]
[1680618573846,27.1,20.96,20.946,24.18696922]
[1680618574060,27.1,20.96,20.947,20.0]
[1680618575051,27.1,20.96,20.946,24.18696922]
[1680618576051,27.1,20.96,20.947,20.0]
[1680618580748,17.0,20.959,20.947,20.0]
[1680618581741,17.0,20.959,20.945,20.0]
[1680618586553,17.0,20.959,20.943,27.18696922]
[1680618586944,17.0,20.959,20.943,7.18696922]
[1680618587340,113.4914,20.958,20.943,7.18696922]
[1680618587543,17.0,20.957,20.943,7.18696922]
[1680618588156,17.0,20.957,20.942,20.0]
[1680618588360,17.0,20.957,20.943,20.0]
[1680618591449,113.4914,20.958,20.943,20.0]
[1680618591653,113.4914,20.958,20.945,20.0]
[1680618594545,113.4914,20.958,20.946,17.0]
[1680618594747,113.4914,20.958,20.945,20.0]
[1680618595461,113.4914,20.958,20.943,27.18696922]
[1680618595650,113.4914,20.958,20.944,17.0]
[1680618596765,113.4914,20.958,20.943,27.18696922]
[1680618597061,113.4914,20.958,20.944,17.0]
[1680618599750,113.4914,20.958,20.945,20.0]
[1680618600464,113.4914,20.958,20.946,24.18696922]
[1680618600653,77.96697,20.97,20.946,24.18696922]
[1680618600654,51.07697,20.97,20.946,43.28296922]
[1680618600844,116.6712,20.969,20.95,27.1]
[1680618601165,116.6712,20.969,20.954,20.0]
[1680618601357,116.6712,20.969,20.955,17.0]
[1680618602161,116.6712,20.969,20.956,20.0]
[1680618602457,116.6712,20.969,20.957,17.0]
[1680618605245,116.6712,20.969,20.954,20.0]
[1680618605658,116.6712,20.969,20.953,19.09]
[1680618606159,116.6712,20.969,20.951,20.0]
[1680618606659,116.6712,20.969,20.95,20.0]
[1680618606859,116.6712,20.969,20.951,20.0]
[1680618607059,116.6712,20.969,20.952,20.0]
[1680618607573,116.6712,20.969,20.953,37.0]
[1680618607776,116.6712,20.969,20.954,20.0]
[1680618608467,116.6712,20.969,20.953,37.0]
[1680618611978,20.0,20.968,20.953,37.0]
[1680618612479,37.0,20.965,20.945,20.0]
[1680618612663,37.0,20.965,20.944,130.2039]
[1680618612664,20.0,20.964,20.944,130.2039]
[1680618612863,26.9,20.96,20.94,41.41773614]
[1680618613064,20.0,20.959,20.941,20.0]
[1680618613271,17.0,20.958,20.941,20.0]
[1680618613482,20.0,20.959,20.941,20.0]
[1680618613781,26.9,20.96,20.941,20.0]
[1680618613965,26.9,20.96,20.942,20.0]
[1680618614168,26.9,20.96,20.943,20.0]
[1680618614481,26.9,20.96,20.944,17.0]
[1680618615867,26.9,20.96,20.945,20.0]
[1680618616079,26.9,20.96,20.946,17.0]
[1680618616484,20.0,20.963,20.946,36.096]
[1680618616675,20.0,20.965,20.946,94.79729275]
[1680618616875,20.0,20.965,20.947,20.0]
[1680618617079,20.0,20.965,20.948,17.0]
[1680618617783,17.0,20.964,20.948,17.0]
[1680618617971,20.0,20.963,20.948,17.0]
[1680618618884,40.0,20.965,20.948,17.0]
[1680618619078,17.0,20.964,20.944,108.2754]
[1680618619280,27.1,20.96,20.944,108.2754]
[1680618619682,17.0,20.959,20.944,108.2754]
[1680618620284,27.1,20.96,20.944,108.2754]
[1680618620489,17.0,20.959,20.944,108.2754]
[1680618621392,17.0,20.959,20.945,17.0]
[1680618621571,27.1,20.96,20.945,17.0]
[1680618621776,20.0,20.965,20.948,20.0]
[1680618621978,85.6647,20.966,20.95,26.98]
[1680618622371,85.6647,20.966,20.951,37.0]
[1680618623181,85.6647,20.966,20.952,20.0]
[1680618623381,85.6647,20.966,20.953,37.0]
[1680618624192,85.6647,20.966,20.953,20.0]
[1680618624885,85.6647,20.966,20.951,20.0]
[1680618625077,85.6647,20.966,20.952,17.0]
[1680618625279,85.6647,20.966,20.953,20.0]
[1680618625787,20.0,20.965,20.953,20.0]
[1680618626382,85.6647,20.966,20.953,20.0]
[1680618628599,17.0,20.965,20.95,20.0]
[1680618630593,17.0,20.965,20.948,19.094]
[1680618630801,20.0,20.963,20.948,19.094]
[1680618630988,17.0,20.962,20.948,19.094]
[1680618631503,17.0,20.964,20.948,19.094]
[1680618631692,20.0,20.963,20.948,19.094]
[1680618632204,20.0,20.965,20.948,19.094]
[1680618632408,17.0,20.964,20.948,19.094]
[1680618632588,20.0,20.963,20.948,19.094]
[1680618632904,17.0,20.962,20.948,19.094]
[1680618633401,17.0,20.962,20.945,20.0]
[1680618633599,17.0,20.962,20.948,17.0]
[1680618634107,17.0,20.964,20.945,20.0]
[1680618634306,20.0,20.963,20.946,17.0]
[1680618634601,17.0,20.962,20.946,17.0]
[1680618636988,17.0,20.964,20.946,17.0]
[1680618638508,20.0,20.963,20.946,17.0]
[1680618638712,17.0,20.962,20.946,17.0]
[1680618641004,17.0,20.962,20.947,20.0]
[1680618642511,20.0,20.963,20.947,20.0]
[1680618642809,20.0,20.965,20.948,17.0]
[1680618643319,20.0,20.965,20.949,20.0]
[1680618643499,20.0,20.965,20.951,20.0]
[1680618646623,20.0,20.965,20.949,20.0]
[1680618646919,17.0,20.964,20.949,20.0]
[1680618647123,20.0,20.963,20.949,20.0]
[1680618647299,17.0,20.962,20.947,27.18696922]
[1680618647505,17.0,20.962,20.947,20.0]
[1680618650121,20.0,20.963,20.949,20.0]
[1680618650315,20.0,20.965,20.949,20.0]
[1680618650627,17.0,20.964,20.949,20.0]
[1680618651026,20.0,20.963,20.949,20.0]
[1680618653736,20.0,20.965,20.95,17.0]
[1680618656335,20.0,20.965,20.949,20.0]
[1680618656516,20.0,20.965,20.95,17.0]
[1680618657040,20.0,20.965,20.949,20.0]
[1680618657217,17.0,20.964,20.949,20.0]
[1680618657417,20.0,20.963,20.949,20.0]
[1680618657736,20.0,20.963,20.947,20.0]
[1680618657919,20.0,20.963,20.948,17.0]
[1680618660741,20.0,20.965,20.948,75.70129275]
[1680618661323,20.0,20.965,20.949,20.0]
[1680618661633,20.0,20.965,20.95,17.0]
[1680618662014,20.0,20.965,20.951,20.0]
[1680618662239,20.0,20.965,20.952,17.0]
[1680618663330,20.0,20.965,20.953,20.0]
[1680618663539,20.0,20.965,20.954,17.0]
[1680618664818,20.0,20.965,20.951,20.0]
[1680618668051,20.0,20.965,20.95,20.0]
[1680618668346,17.0,20.964,20.95,20.0]
[1680618668548,20.0,20.963,20.95,20.0]
[1680618670145,20.0,20.965,20.95,20.0]
[1680618670445,17.0,20.964,20.95,20.0]
[1680618670649,20.0,20.963,20.95,20.0]
[1680618672635,20.0,20.963,20.948,27.18696922]
[1680618672636,20.0,20.963,20.948,7.18696922]
[1680618672842,20.0,20.963,20.945,108.7333]
[1680618672843,17.0,20.962,20.945,108.7333]
[1680618673153,17.0,20.962,20.945,115.92026922]
[1680618673450,17.0,20.962,20.946,20.0]
[1680618673950,17.0,20.962,20.947,17.0]
[1680618674642,17.0,20.962,20.948,20.0]
[1680618676430,17.0,20.962,20.944,159.78972353]
[1680618676636,16.49531917,20.962,20.944,159.78972353]
[1680618677043,16.49531917,20.962,20.944,212.01369]
[1680618677248,20.0,20.963,20.945,20.0]
[1680618677455,20.0,20.965,20.945,20.0]
[1680618677656,20.0,20.965,20.946,103.73829]
[1680618677954,20.0,20.965,20.947,17.0]
[1680618678151,20.0,20.965,20.948,20.0]
[1680618678328,20.0,20.965,20.949,17.0]
[1680618679031,85.6647,20.966,20.95,40.41]
[1680618679238,116.6712,20.969,20.952,20.0]
[1680618679553,20.0,20.973,20.953,37.0]
[1680618679732,20.0,20.973,20.953,147.92525922]
[1680618679932,20.0,20.973,20.954,58.70129275]
[1680618680134,20.0,20.973,20.956,20.0]
[1680618680350,20.0,20.973,20.957,17.0]
[1680618680649,20.0,20.973,20.958,20.0]
[1680618680850,20.0,20.973,20.959,17.0]
[1680618681055,20.0,20.973,20.96,20.0]
[1680618684449,20.0,20.973,20.961,17.0]
[1680618685153,20.0,20.973,20.962,20.0]
[1680618685962,20.0,20.973,20.963,17.0]
[1680618686163,20.0,20.973,20.964,20.0]
[1680618687162,20.0,20.973,20.965,17.0]
[1680618689257,20.0,20.973,20.964,20.0]
[1680618689469,20.0,20.973,20.966,7.18696922]
[1680618689674,20.0,20.973,20.967,17.0]
[1680618689868,20.0,20.973,20.966,7.18696922]
[1680618690077,20.0,20.973,20.964,20.0]
[1680618690974,20.0,20.973,20.962,20.0]
[1680618691167,20.0,20.973,20.963,20.0]
[1680618691858,20.0,20.973,20.961,20.0]
[1680618692162,20.0,20.973,20.962,20.0]
[1680618692371,20.0,20.973,20.963,37.0]
[1680618692573,20.0,20.973,20.964,20.0]
[1680618693287,119.2276,20.979,20.964,20.0]
[1680618693568,17.0,20.978,20.964,20.0]
[1680618695056,119.2276,20.979,20.964,27.18696922]
[1680618695360,119.2276,20.979,20.966,20.0]
[1680618699582,119.2276,20.979,20.965,17.0]
[1680618700978,119.2276,20.979,20.964,7.18696922]
[1680618701178,17.0,20.978,20.964,7.18696922]
[1680618701561,17.0,20.978,20.965,20.0]
[1680618703678,17.0,20.978,20.964,20.0]
[1680618704062,17.0,20.978,20.963,47.18696922]
[1680618704676,17.0,20.978,20.964,20.0]
[1680618706384,17.0,20.978,20.964,27.18696922]
[1680618707179,119.2276,20.979,20.964,27.18696922]
[1680618711973,119.2276,20.979,20.964,20.0]
[1680618712572,119.2276,20.979,20.966,20.0]
[1680618718288,119.2276,20.979,20.966,39.078]
[1680618718488,119.2276,20.979,20.967,17.0]
[1680618718697,14.5854756,20.984,20.967,17.0]
[1680618718991,20.0,20.983,20.967,17.0]
[1680618719380,20.0,20.983,20.967,68.51432353]
[1680618719580,20.0,20.986,20.967,68.51432353]
[1680618719987,20.0,20.986,20.968,20.0]
[1680618720183,17.0,20.985,20.969,17.0]
[1680618720377,20.0,20.984,20.969,17.0]
[1680618720777,20.0,20.984,20.97,20.0]
[1680618722592,20.0,20.986,20.97,20.0]
[1680618722778,17.0,20.985,20.97,20.0]
[1680618722983,20.0,20.984,20.97,20.0]
[1680618724695,20.0,20.984,20.971,17.0]
[1680618724886,20.0,20.986,20.971,17.0]
[1680618725497,17.0,20.985,20.97,20.0]
[1680618725695,20.0,20.984,20.97,20.0]
[1680618725992,17.0,20.983,20.97,20.0]
[1680618726500,20.0,20.984,20.97,20.0]
[1680618726703,20.0,20.986,20.97,20.0]
[1680618726901,17.0,20.985,20.97,20.0]
[1680618727100,20.0,20.984,20.97,20.0]
[1680618727788,20.0,20.986,20.971,17.0]
[1680618728411,20.0,20.986,20.97,20.0]
[1680618728710,20.0,20.986,20.971,17.0]
[1680618729011,20.0,20.986,20.97,20.0]
[1680618729391,20.0,20.986,20.971,17.0]
[1680618731698,78.3851,20.988,20.972,7.18696922]
[1680618731902,78.3851,20.988,20.973,20.0]
[1680618731903,109.4012,20.987,20.973,20.0]
[1680618732091,109.4012,20.987,20.973,37.0]
[1680618732293,109.4012,20.987,20.974,7.18696922]
[1680618732594,78.3851,20.988,20.976,20.0]
[1680618734094,109.4012,20.998,20.976,27.18696922]
[1680618734400,109.4012,20.998,20.978,19.067]
[1680618734606,20.0,20.997,20.979,20.0]
[1680618735393,17.0,20.996,20.979,20.0]
[1680618735711,20.0,20.995,20.979,20.0]
[1680618735893,17.0,20.994,20.979,20.0]
[1680618736308,20.0,20.993,20.979,20.0]
[1680618736513,17.0,20.992,20.979,20.0]
[1680618737500,17.0,20.992,20.978,20.0]
[1680618737709,17.0,20.992,20.977,20.0]
[1680618741506,20.0,20.991,20.977,20.0]
[1680618741716,17.0,20.99,20.977,20.0]
[1680618742214,20.0,20.991,20.977,20.0]
[1680618745312,20.0,20.991,20.978,17.0]
[1680618746304,20.0,20.991,20.98,46.135]
[1680618746503,20.0,20.991,20.981,17.0]
[1680618747407,20.0,20.991,20.982,20.0]
[1680618747609,20.0,20.991,20.983,17.0]
[1680618747912,20.0,20.991,20.984,20.0]
[1680618748111,20.0,20.991,20.985,17.0]
[1680618748516,20.0,20.991,20.985,24.18696922]
[1680618748817,20.0,20.991,20.986,27.18696922]
[1680618749021,20.0,20.991,20.987,17.0]
[1680618749216,20.0,20.991,20.987,24.18696922]
[1680618749408,20.0,20.991,20.988,20.0]
[1680618750509,14.3244916,21.007,20.988,46.24396922]
[1680618750722,119.2149,21.009,20.99,47.07]
[1680618751104,119.2149,21.009,20.986,20.0]
[1680618751306,20.0,21.008,20.986,20.0]
[1680618751520,20.0,21.007,20.987,17.0]
[1680618751924,17.0,21.006,20.987,17.0]
[1680618752227,20.0,21.005,20.987,17.0]
[1680618752428,17.0,21.004,20.986,20.0]
[1680618752726,20.0,21.003,20.986,20.0]
[1680618752945,17.0,21.002,20.986,20.0]
[1680618755425,20.0,21.003,20.986,20.0]
[1680618755610,20.0,21.007,20.986,20.0]
[1680618755813,17.0,21.006,20.986,20.0]
[1680618756026,20.0,21.005,20.986,20.0]
[1680618756227,17.0,21.004,20.986,20.0]
[1680618756418,20.0,21.003,20.986,20.0]
[1680618757121,20.0,21.003,20.987,19.058]
[1680618757322,20.0,21.008,20.989,20.0]
[1680618757937,20.0,21.008,20.987,19.058]
[1680618758436,17.0,21.007,20.988,20.0]
[1680618758620,20.0,21.006,20.988,20.0]
[1680618758817,17.0,21.005,20.988,20.0]
[1680618760020,17.0,21.005,20.982,65.66547737]
[1680618760021,17.0,21.005,20.982,26.60147737]
[1680618760223,17.0,21.005,20.983,24.18696922]
[1680618760532,26.96,21.0,20.983,7.18696922]
[1680618760735,249.4336,20.999,20.983,7.18696922]
[1680618761423,249.4336,20.999,20.984,20.0]
[1680618761633,249.4336,20.999,20.977,129.83517339]
[1680618761833,249.4336,20.999,20.98,47.07]
[1680618762139,232.4336,20.999,20.98,130.7051572]
[1680618762433,232.4336,20.999,20.981,78.77351497]
[1680618762636,232.4336,20.999,20.983,20.0]
[1680618763137,232.4336,20.999,20.984,43.24896922]
[1680618763317,232.4336,20.999,20.985,20.0]
[1680618763520,232.4336,20.999,20.985,27.18696922]
[1680618764035,119.7089,20.999,20.986,24.18696922]
[1680618764336,119.7089,20.999,20.987,27.18696922]
[1680618764537,119.7089,20.999,20.988,17.0]
[1680618766134,20.0,21.007,20.992,17.0]
[1680618766930,20.0,21.007,20.989,20.0]
[1680618767237,17.0,21.006,20.988,117.023]
[1680618767437,20.0,21.005,20.988,117.023]
[1680618767838,20.0,21.005,20.989,20.0]
[1680618768753,20.0,21.005,20.988,117.023]
[1680618769048,20.0,21.006,20.988,117.023]
[1680618769250,20.0,21.008,20.989,20.0]
[1680618769431,17.0,21.007,20.989,20.0]
[1680618769627,20.0,21.006,20.989,20.0]
[1680618770229,20.0,21.009,20.991,20.0]
[1680618770431,20.0,21.009,20.989,20.0]
[1680618771845,17.0,21.008,20.989,20.0]
[1680618772029,20.0,21.007,20.989,20.0]
[1680618777753,20.0,21.007,20.99,17.0]
[1680618777937,20.0,21.009,20.99,17.0]
[1680618778137,20.0,21.009,20.991,20.0]
[1680618779334,20.0,21.009,20.992,17.0]
[1680618780461,20.0,21.009,20.991,20.0]
[1680618783857,20.0,21.009,20.992,17.0]
[1680618784157,20.0,21.009,20.993,20.0]
[1680618784462,20.0,21.009,20.994,17.0]
[1680618785043,20.0,21.009,20.995,20.0]
[1680618785361,20.0,21.009,20.995,18.0]
[1680618785549,20.0,21.009,20.996,17.0]
[1680618786254,20.0,21.009,20.995,18.0]
[1680618786653,20.0,21.009,20.993,20.0]
[1680618786863,17.0,21.008,20.988,20.0]
[1680618787158,54.03,21.0,20.979,19.065]
[1680618787456,180.70466922,20.999,20.977,134.8016]
[1680618787658,180.70466922,20.999,20.977,19.063]
[1680618787844,7.18696922,20.998,20.977,19.063]
[1680618788038,27.07,20.99,20.977,19.063]
[1680618788246,20.0,20.989,20.977,19.063]
[1680618788459,27.18696922,20.989,20.977,19.063]
[1680618789559,27.07,20.99,20.977,19.063]
[1680618790964,20.0,20.989,20.977,19.063]
[1680618791761,27.05,20.99,20.977,19.063]
[1680618791960,20.0,20.989,20.977,19.063]
[1680618792846,7.18696922,20.988,20.977,19.063]
[1680618793048,20.0,20.987,20.977,19.063]
[1680618793450,17.0,20.986,20.977,19.063]
[1680618793649,20.0,20.985,20.977,19.063]
[1680618793949,20.0,20.983,20.977,19.063]
[1680618794150,20.0,20.987,20.977,19.063]
[1680618794346,17.0,20.986,20.977,19.063]
[1680618794547,20.0,20.985,20.977,19.063]
[1680618794758,20.0,20.987,20.977,19.063]
[1680618794959,20.0,20.986,20.977,19.063]
[1680618795165,20.0,20.985,20.977,19.063]
[1680618795748,20.0,20.984,20.977,19.063]
[1680618798967,20.0,20.985,20.977,19.063]
[1680618800369,17.0,20.984,20.977,19.063]
[1680618800574,20.0,20.983,20.977,19.063]
[1680618801857,20.0,20.985,20.977,19.063]
[1680618803179,20.0,20.985,20.969,7.18696922]
[1680618803473,20.0,20.987,20.971,20.0]
[1680618805073,20.0,20.987,20.97,17.0]
[1680618805268,20.0,20.986,20.97,17.0]
[1680618805456,20.0,20.985,20.97,17.0]
[1680618806966,20.0,20.986,20.97,17.0]
[1680618807673,20.0,20.986,20.969,7.18696922]
[1680618808374,20.0,20.985,20.969,7.18696922]
[1680618809061,20.0,20.986,20.969,7.18696922]
[1680618810066,20.0,20.987,20.969,7.18696922]
[1680618810264,17.0,20.986,20.969,7.18696922]
[1680618810467,20.0,20.985,20.969,7.18696922]
[1680618812461,20.0,20.986,20.97,17.0]
[1680618814484,20.0,20.987,20.97,17.0]
[1680618816877,17.0,20.986,20.971,17.0]
[1680618817077,20.0,20.985,20.969,17.0]
[1680618822313,20.0,20.985,20.967,27.18696922]
[1680618822598,17.0,20.984,20.968,17.0]
[1680618822801,20.0,20.983,20.968,17.0]
[1680618822999,20.0,20.983,20.967,7.18696922]
[1680618823610,20.0,20.983,20.968,20.0]
[1680618824383,20.0,20.983,20.969,43.01183404]
[1680618824587,20.0,20.987,20.97,20.0]
[1680618824889,20.0,20.987,20.972,20.0]
[1680618825090,20.0,20.987,20.973,17.0]
[1680618825497,20.0,20.987,20.971,17.0]
[1680618826393,20.0,20.987,20.969,19.074]
[1680618826594,20.0,20.987,20.97,17.0]
[1680618826986,20.0,20.987,20.971,20.0]
[1680618827186,20.0,20.987,20.972,17.0]
[1680618827804,20.0,20.987,20.972,22.3689649]
[1680618831905,20.0,20.987,20.97,20.0]
[1680618833304,20.0,20.987,20.971,17.0]
[1680618833508,20.0,20.987,20.97,17.0]
[1680618834604,20.0,20.986,20.967,27.18696922]
[1680618834806,20.0,20.985,20.967,27.18696922]
[1680618835898,20.0,20.985,20.969,17.0]
[1680618837105,20.0,20.985,20.968,17.0]
[1680618837503,20.0,20.984,20.968,17.0]
[1680618837696,20.0,20.983,20.968,17.0]
[1680618837897,20.0,20.985,20.968,17.0]
[1680618845411,20.0,20.985,20.969,20.0]
[1680618845611,20.0,20.985,20.97,17.0]
[1680618846227,20.0,20.987,20.971,20.0]
[1680618846403,20.0,20.987,20.972,17.0]
[1680618846718,19.074571,20.994,20.972,17.0]
[1680618847018,19.074571,20.994,20.973,46.25796922]
[1680618847310,19.074571,20.994,20.975,20.0]
[1680618847515,19.074571,20.994,20.976,21.60668642]
[1680618847710,19.074571,20.994,20.977,114.4989]
[1680618847912,19.074571,20.994,20.978,17.0]
[1680618848113,19.074571,20.994,20.979,20.0]
[1680618848312,20.0,20.993,20.98,17.0]
[1680618849929,20.0,20.993,20.977,114.4989]
[1680618850219,20.0,20.993,20.978,20.0]
[1680618851411,20.0,20.993,20.979,17.0]
[1680618852411,20.0,20.993,20.975,24.72893201]
[1680618852412,20.0,20.993,20.973,20.0]
[1680618852603,17.0,20.992,20.973,20.0]
[1680618852803,17.0,20.992,20.975,20.0]
[1680618853005,20.0,20.993,20.975,20.0]
[1680618853818,20.0,20.993,20.976,17.0]
[1680618854215,20.0,20.993,20.977,20.0]
[1680618854414,20.0,20.993,20.978,17.0]
[1680618855016,20.0,20.993,20.977,20.0]
[1680618855220,20.0,20.993,20.978,17.0]
[1680618857022,20.0,20.993,20.979,20.0]
[1680618857208,20.0,20.993,20.98,17.0]
[1680618858009,20.0,20.993,20.981,24.95552959]
[1680618858213,20.0,20.993,20.982,17.0]
[1680618860313,20.0,20.993,20.98,17.0]
[1680618860726,20.0,20.997,20.98,17.0]
[1680618864330,17.0,20.996,20.978,17.0]
[1680618864526,20.0,20.995,20.979,20.0]
[1680618864713,20.0,20.995,20.98,17.0]
[1680618864913,20.0,20.996,20.98,17.0]
[1680618870932,17.0,20.995,20.978,17.0]
[1680618871133,40.0,20.994,20.978,17.0]
[1680618871329,17.0,20.993,20.977,112.1029]
[1680618872021,20.0,20.992,20.977,112.1029]
[1680618872628,20.0,20.992,20.978,17.0]
[1680618873233,17.0,20.993,20.978,17.0]
[1680618873828,17.0,20.993,20.977,112.1029]
[1680618874032,20.0,20.992,20.977,112.1029]
[1680618874422,17.0,20.991,20.977,112.1029]
[1680618875725,17.0,20.991,20.974,122.8935045]
[1680618875927,17.0,20.991,20.975,17.0]
[1680618876626,20.0,20.99,20.975,17.0]
[1680618878123,17.0,20.991,20.975,17.0]
[1680618878329,20.0,20.992,20.975,17.0]
[1680618882141,27.0,20.99,20.975,17.0]
[1680618884538,109.5541,20.993,20.975,17.0]
[1680618884727,20.0,20.996,20.976,7.95298659]
[1680618884932,20.0,20.995,20.978,20.0]
[1680618885132,136.5646,20.998,20.979,23.84802705]
[1680618885334,136.5646,20.998,20.98,26.91]
[1680618885535,136.5646,20.998,20.981,17.0]
[1680618888548,20.0,20.997,20.981,17.0]
[1680618888947,20.0,20.996,20.981,17.0]
[1680618889547,20.0,20.996,20.98,17.0]
[1680618890536,20.0,20.997,20.98,17.0]
[1680618891139,20.0,20.996,20.98,17.0]
[1680618891952,20.0,20.997,20.98,17.0]
[1680618892154,20.0,20.997,20.98,43.9]
[1680618892457,20.0,20.996,20.98,43.9]
[1680618892643,20.0,20.997,20.98,43.9]
[1680618896758,20.0,20.996,20.98,43.9]
[1680618897162,20.0,20.996,20.98,17.0]
[1680618897564,20.0,20.996,20.977,116.4801]
[1680618898671,20.0,20.996,20.978,20.0]
[1680618898871,20.0,20.996,20.979,17.0]
[1680618899077,20.0,20.995,20.979,17.0]
[1680618899369,20.0,20.997,20.979,17.0]
[1680618899574,20.0,20.997,20.979,31.13985967]
[1680618899765,20.0,20.997,20.98,20.0]
[1680618899968,20.0,20.997,20.981,17.0]
[1680618901582,20.0,20.997,20.98,17.0]
[1680618902777,20.0,20.996,20.98,17.0]
[1680618902984,20.0,20.995,20.98,17.0]
[1680618903985,20.0,20.996,20.98,17.0]
[1680618908483,20.0,20.997,20.98,17.0]
[1680618909080,116.5646,20.998,20.98,17.0]
[1680618909282,116.5646,20.998,20.981,20.0]
[1680618909481,116.5646,20.998,20.982,37.0]
[1680618909986,116.5646,20.998,20.983,25.34245006]
[1680618910176,116.5646,20.998,20.984,17.0]
[1680618911289,168.06612748,21.01,20.985,20.0]
[1680618911484,119.9856,21.005,20.986,17.0]
[1680618911674,20.0,21.004,20.986,17.0]
[1680618913679,20.0,21.004,20.986,20.0]
[1680618913878,20.0,21.004,20.987,17.0]
[1680618914278,20.0,21.004,20.985,17.0]
[1680618914479,20.0,21.001,20.984,5.73739855]
[1680618915491,20.0,21.001,20.983,20.0]